[Event "Silves Open 2025"]
[Site "Fissul"]
[Date "2025.03.05"]
[Round "6.21"]
[White "Avelino, Camila Biscaya"]
[Black "Jeremias, Damaim"]
[Result "1-0"]
[Annotator "TA"]
[ECO "B42"]
[WhiteElo "1906"]
[BlackElo "1690"]
[PlyCount "91"]
[EventDate "2025.03.03"]
[EventType "swiss"]
[EventCountry "POR"]
[SourceTitle "playchess.com"]
[Source "ChessBase"]
[SourceQuality "1"]
[TimeControl "5400+30"]

{[%evp 16,91,50,41,70,39,44,43,45,9,8,0,38,38,43,0,40,0,1,-304,-296,-321,-312,-275,-297,-289,-123,-376,-387,-416,-423,-398,-246,-254,-85,-85,-87,-84,-16,0,0,-22,32,0,0,-27,0,0,0,-24,7,0,58,73,59,44,81,76,74,68,179,168,241,89,316,300,474,441,1022,982,970,969,1327,1150,29985,29986,29986,29987]} 1. e4 {[%emt 0:00:06]} c5 {[%emt 0:00:10]} 2. Nf3 {[%emt 0:00:05]} e6 {[%emt 0:00:11]} 3. d4 {[%emt 0:00:03]} cxd4 {[%emt 0:00:09]} 4. Nxd4 {[%emt 0:00:05]} a6 {[%emt 0:00:08]} 5. c4 {[%emt 0:03:22]} Nc6 6. Nxc6 {[%emt 0:00:30]} bxc6 {[%emt 0:03:23]} 7. Nc3 {[%emt 0:06:45]} Qc7 {[%emt 0:04:57]} 8. Bd3 {[%emt 0:01:17]} Nf6 {[%emt 0:01:59]} 9. O-O {[%emt 0:00:45]} e5 {[%emt 0:01:43] B42: Sicilian: Kan Variation: 5 Bd3.} 10. Kh1 {[%emt 0:05:19]} d6 {[%emt 0:02:58]} 11. f4 {[%emt 0:05:00]} Be7 {[%emt 0:06:26] White is slightly better.} 12. c5 {[%emt 0:01:07]} dxc5 {[%emt 0:09:31]} 13. f5 {[%emt 0:01:22]} h6 $146 {[%emt 0:03:35]} ({Predecessor:} 13... a5 14. Qe2 a4 15. Nb1 Qa7 16. Nd2 Ba6 17. Nc4 Bxc4 18. Bxc4 Rd8 19. Be3 O-O {½-½ Keskisarja,T (2268)-Blechzin,I (2386) Heart of Finland op 09th 1999}) 14. Be3 {[%emt 0:02:27][%mdl 1024] White sacrificed a pawn White has compensation.} O-O {[%emt 0:05:04]} 15. Na4 {[%emt 0:07:11][%csl Oc5] White attacks a weakness} (15. Qe2 $5) 15... Qa5 {[%emt 0:04:42]} 16. Rc1 {[%emt 0:03:51][%cal Ob2b3]} Rd8 {[%emt 0:00:55][%cal Od8d3] And now ...Rxd3! would win.} 17. Qc2 {[%emt 0:00:39][%mdl 8192] [#]} (17. Nxc5 $11 {and White is okay.} Qxa2 18. Qe2) 17... Rxd3 $1 $19 {[%emt 0:03:13][%mdl 512]} 18. Qxd3 {[%emt 0:03:31][%cal Re3c5]} Qxa4 {[%emt 0:00:39]} 19. Bxc5 {[%emt 0:09:36]} Bxc5 {[%emt 0:03:31]} (19... Qxe4 20. Qxe4 Nxe4 21. Bxe7 $16) 20. Rxc5 {[%emt 0:00:05]} Qxe4 {[%emt 0:02:20]} (20... Qxa2 21. Rxe5 a5 (21... Qxb2 $2 22. Qd8+ Kh7 23. Re7 $19) 22. Qc3 $19) (20... Rb8 $19 21. Rxe5 Rxb2 (21... Qxa2 22. Re7 $15)) 21. Qd8+ $2 {[%emt 0:09:16][%mdl 8192]} (21. Qxe4 $17 Nxe4 22. Rxe5) 21... Kh7 {[%emt 0:01:13]} 22. Qe7 {[%emt 0:00:33]} Qe2 {[%emt 0:05:05]} (22... Bxf5 23. Rxe5 Qa4 24. Rexf5 Qxa2 25. Qa3 $16) 23. Rcc1 {[%emt 0:01:33]} Qg4 {[%emt 0:04:43]} 24. Qxe5 {[%emt 0:02:50]} Qe4 $2 {[%emt 0:05:04]} (24... Qa4 $19 {and Black stays clearly on top.} 25. a3 Bd7) 25. Qxe4 $17 {[%emt 0:04:21]} Nxe4 {[%emt 0:00:05]} 26. Rxc6 {[%emt 0:00:09]} f6 {[%emt 0:01:45]} (26... Bb7 $17 27. Rc7 Bd5) 27. Rc7 {[%emt 0:06:27]} Rb8 {[%emt 0:01:26][%cal Oe4d6]} 28. b3 {[%emt 0:00:32]} Bb7 {[%emt 0:00:48]} ({Better is} 28... h5 $11) 29. Re1 {[%emt 0:00:29]} Bd5 {[%emt 0:03:51]} 30. Rd7 {[%emt 0:03:50]} Bc6 {[%emt 0:00:47]} 31. Rc7 {[%emt 0:02:15]} Ba8 {[%emt 0:02:12]} 32. Ra7 {[%emt 0:01:10][%cal Oa7a8]} Bd5 {[%emt 0:00:58]} 33. Rxa6 {[%emt 0:01:14]} Re8 {[%emt 0:00:09]} (33... Rc8 $11 34. Ra5 Bb7) 34. Kg1 $14 {[%emt 0:00:44]} Rc8 {[%emt 0:01:33]} 35. Ra5 {[%emt 0:05:00]} Bb7 {[%emt 0:02:34] [#]} 36. Ra7 $1 {[%emt 0:01:52][%cal Ba5a7,Ba7d7,Bd7d4][%mdl 32]} Bd5 {[%emt 0:00:09]} 37. Rd7 {[%emt 0:01:31] White is more active.} Bc6 {[%emt 0:00:21] [#]} (37... Ba8 $1 $14) 38. Rd4 $1 $18 {[%emt 0:01:10][%cal Oe1c1] Threatens to win with Rc1!.} Ng5 {[%emt 0:00:45]} (38... Ra8 39. a4 (39. Rdxe4 Bxe4 40. Rxe4 Rxa2 $14) 39... Ng5) 39. Re7 $2 {[%emt 0:04:30]} (39. Rc1 $18) 39... Ba8 $2 {[%emt 0:07:31]} (39... Kg8 $16) 40. h4 {[%emt 0:02:49]} Rc1+ {[%emt 0:05:21]} (40... Ne4 {was called for.} 41. Rdd7 (41. Rdxe4 Bxe4 42. Rxe4 Rc1+ 43. Kh2 Rf1 $18) 41... Rg8 (41... Rc1+ $2 42. Kh2 $18)) 41. Kh2 {[%emt 0:01:42]} Nf3+ {[%emt 0:02:39]} (41... Rc2 $142 42. hxg5 hxg5) 42. gxf3 {[%emt 0:00:17]} Bxf3 {[%emt 0:00:48]} 43. Rdd7 {[%emt 0:00:07]} Rh1+ {[%emt 0:05:39]} 44. Kg3 {[%emt 0:00:05]} Rg1+ {[%emt 0:00:54]} 45. Kxf3 {[%emt 0:00:09]} h5 {[%emt 0:00:03] [#]} 46. Rxg7+ $3 {[%emt 0:00:09] What a bad dream for Black.   Weighted Error Value: White=0.34/Black=0.91  Loses game:     	White=2     	Black=1      Missed win:     	---       	Black=2      Mistake:       	White=1     	Black=7      Inaccurate:     	White=6     	Black=6      OK:         	White=6     	Black=5      Best:        	White=5     	Black=3      Strong:       	White=2     	---        Brilliant:      	---       	Black=1} 1-0

[Event "Silves Open 2025"]
[Site "Fissul"]
[Date "2025.03.04"]
[Round "6.22"]
[White "Munno Moyano, Mario"]
[Black "Santos, Jose P"]
[Result "0-1"]
[Annotator "TA"]
[WhiteElo "1755"]
[BlackElo "2273"]
[PlyCount "28"]
[EventDate "2025.03.03"]
[EventType "swiss"]
[EventCountry "POR"]
[SourceTitle "playchess.com"]
[Source "ChessBase"]
[SourceQuality "1"]
[TimeControl "5400+30"]

{[%evp 9,15,0,0,-7,-13,-8,0,-4]} 1. e4 {[%emt 0:00:03]} c6 {[%emt 0:01:09]} 2. d4 {[%emt 0:00:08]} d5 {[%emt 0:00:06]} 3. e5 {[%emt 0:00:14]} c5 {[%emt 0:00:04]} 4. dxc5 {[%emt 0:00:11]} e6 {[%emt 0:00:06]} 5. a3 {[%emt 0:00:16]} Bxc5 {[%emt 0:00:22] The position is equal.} 6. b4 {[%emt 0:00:06] B12: Caro-Kann: Advance Variation.} Be7 {[%emt 0:00:06]} 7. Qg4 {[%emt 0:00:24]} g6 {[%emt 0:00:56]} 8. Bd3 {[%emt 0:00:14][%mdl 32768] An uneventful encounter.   Weighted Error Value: White=0.04 (flawless) /Black=0.00 (flawless)  Loss on time!?  OK:         	---       	Black=2} {Predecessor:} a5 $146 9. b5 Nd7 10. Nf3 h5 11. Qf4 Nh6 12. a4 b6 13. O-O Bb7 14. Nc3 Qc7 {0-1 Haubro,M (2426)-Thybo,J (2602) DEN-ch Svendborg 2021 (3)} 0-1

[Event "Silves Open 2025"]
[Site "Fissul"]
[Date "2025.03.04"]
[Round "6.23"]
[White "Ribeiro, Margarida"]
[Black "De Kruif, Kees"]
[Result "0-1"]
[Annotator "NA RC COMBH"]
[ECO "B42"]
[WhiteElo "1519"]
[BlackElo "1857"]
[PlyCount "36"]
[EventDate "2025.03.03"]
[EventType "swiss"]
[EventCountry "POR"]
[SourceTitle "playchess.com"]
[Source "ChessBase"]
[SourceQuality "1"]
[TimeControl "5400+30"]

1. e4 c5 2. Nf3 d6 3. d4 cxd4 4. Nxd4 Nf6 5. Nc3 a6 6. Bd3 e6 7. O-O Be7 8. Re1 Qc7 9. Be3 O-O 10. f4 Nc6 11. Nf3 b5 12. a3 Bb7 13. Qd2 Ng4 14. h3 Nxe3 15. Qxe3 Na5 16. Rac1 Rfd8 17. Nd2 d5 18. exd5 Bc5 0-1

[Event "Silves Open 2025"]
[Site "Fissul"]
[Date "2025.03.05"]
[Round "6.25"]
[White "Ruiz Esteban, Ruben"]
[Black "Silva, Ana Ines Teixeira Da"]
[Result "1/2-1/2"]
[Annotator "TA"]
[ECO "C47"]
[WhiteElo "1655"]
[BlackElo "1901"]
[PlyCount "63"]
[EventDate "2025.03.03"]
[EventType "swiss"]
[EventCountry "POR"]
[SourceTitle "playchess.com"]
[Source "ChessBase"]
[SourceQuality "1"]
[TimeControl "5400+30"]

{[%evp 25,63,10,25,15,55,48,55,31,32,34,117,6,19,0,26,0,0,0,6,-4,0,0,-14,0,0,0,0,0,0,0,0,0,0,0,0,0,0,0,0,0]} 1. e4 {[%emt 1:31:00]} e5 {[%emt 1:31:00]} 2. Nf3 {[%emt 0:00:30]} Nc6 {[%emt 0:00:30]} 3. Nc3 {[%emt 0:00:30]} Nf6 {[%emt 0:00:30]} 4. d4 {[%emt 0:00:30]} exd4 {[%emt 0:00:30]} 5. Nxd4 {[%emt 0:00:30]} Bb4 {[%emt 0:00:30]} 6. Nxc6 {[%emt 0:00:30]} bxc6 {[%emt 0:00:30]} 7. Bd3 {[%emt 0:00:30]} d5 {[%emt 0:00:30]} 8. exd5 {[%emt 0:00:30]} O-O {[%emt 0:00:30]} 9. O-O {[%emt 0:00:30]} cxd5 {[%emt 0:00:30]} 10. Bg5 {[%emt 0:00:30]} Be6 {[%emt 0:00:30]} 11. Qf3 {[%emt 0:00:30]} Be7 {[%emt 0:00:30]} 12. h3 {[%emt 0:00:30]} c5 {[%emt 0:00:30]} 13. b3 {[%emt 0:00:30]} Rb8 {[%emt 0:00:30]} 14. Rad1 {[%emt 0:00:30] C47: Scotch Four Knights and Four Knights with 4 g3.} d4 {[%emt 0:00:30]} 15. Ne4 {[%emt 0:00:30][%cal Bc3e4,Be4d2,Bd2c4,Bc4e5][%mdl 32]} Nd5 {[%emt 0:00:30]} 16. Bxe7 {[%emt 0:00:30] White is slightly better.} Qxe7 {[%emt 0:00:30]} 17. Rfe1 {[%emt 0:00:30]} Nb4 {[%emt 0:00:30]} (17... h6 $14) 18. Ra1 $146 {[%emt 0:00:30]} (18. Qh5 $16 {[%cal Oe4f6] White threatens Nf6+! and mate.} Nxd3 19. cxd3 (19. Rxd3 c4 $18)) (18. Qh5 Nxd3 19. cxd3 Rfc8 20. Rc1 Rb5 21. Ng5 h6 22. Nxe6 fxe6 23. Re5 Qf7 24. Qe2 {1-0 Woodhouse,S (2066)-Hassall,K (1713) WLS/SRCCC/21/D4 2021 [2]}) 18... Rfc8 $11 {[%emt 0:00:30]} 19. Nd2 {[%emt 0:00:30]} Nxd3 {[%emt 0:00:30]} (19... Qc7 {feels hotter.} 20. Qh5 g6 21. Qh4 Qd8) 20. Qxd3 {[%emt 0:00:30]} Qd7 {[%emt 0:00:30] The position is equal.} 21. Nc4 {[%emt 0:00:30]} Bf5 {[%emt 0:00:30]} 22. Qd2 {[%emt 0:00:30]} Re8 {[%emt 0:00:30]} 23. Re5 {[%emt 0:00:30]} Rxe5 {[%emt 0:00:30]} 24. Nxe5 {[%emt 0:00:30]} Qd5 {[%emt 0:00:30]} 25. Re1 {[%emt 0:00:30]} Re8 {[%emt 0:00:30]} 26. Nd3 {[%emt 0:00:30][%cal Re1e8] [#]} Rxe1+ {[%emt 0:00:30]} 27. Qxe1 {[%emt 0:00:30][%cal Re1e8] KQB-KQN} g6 {[%emt 0:00:30]} 28. Qa5 {[%emt 0:00:30]} Bxd3 {[%emt 0:00:30]} 29. cxd3 {[%emt 0:00:30]} Qf5 {[%emt 0:00:30]} 30. Qxa7 {[%emt 0:00:30]} Qxd3 {[%emt 0:00:30]} 31. Qb8+ {[%emt 0:00:30]} Kg7 {[%emt 0:00:30]} 32. Qe5+ {[%emt 0:00:30] Weighted Error Value: White=0.16 (very precise) /Black=0.13 (very precise)   Mistake:       	White=1     	Black=1      Inaccurate:     	White=1     	Black=2      OK:         	White=6     	Black=9      Best:        	---       	Black=1} 1/2-1/2

[Event "Silves Open 2025"]
[Site "Fissul"]
[Date "2025.03.05"]
[Round "6.26"]
[White "Ryabukhina, Veronika"]
[Black "Leal, Jose Alberto"]
[Result "1-0"]
[Annotator "NA RC"]
[ECO "D15"]
[WhiteElo "1880"]
[BlackElo "1688"]
[PlyCount "65"]
[EventDate "2025.03.03"]
[EventType "swiss"]
[EventCountry "POR"]
[SourceTitle "playchess.com"]
[Source "ChessBase"]
[SourceQuality "1"]
[TimeControl "5400+30"]

1. d4 {[%emt 0:00:30]} d5 {[%emt 0:00:12]} 2. c4 {[%emt 0:00:00]} c6 {[%emt 0:00:24]} 3. Nc3 {[%emt 0:00:08]} dxc4 {[%emt 0:02:44]} 4. e3 {[%emt 0:02:11]} Bf5 {[%emt 0:00:23]} 5. Bxc4 {[%emt 0:00:24]} e6 {[%emt 0:00:27]} 6. Nf3 {[%emt 0:00:47]} Nf6 {[%emt 0:00:37]} 7. O-O {[%emt 0:00:47]} Bd6 {[%emt 0:03:06] D15: Slav Defence: 4 Nc3 a6 and gambit lines after 4 Nc3 dxc4.} 8. Qe2 {[%emt 0:01:04]} Ne4 {[%emt 0:02:05]} 9. Bd3 {[%emt 0:10:02]} Nxc3 {[%emt 0:02:33]} 10. bxc3 {[%emt 0:00:08]} Bxd3 {[%emt 0:00:43]} 11. Qxd3 {[%emt 0:00:08]} O-O {[%emt 0:02:10]} 12. e4 {[%emt 0:00:45]} Nd7 {[%emt 0:02:13]} 13. e5 {[%emt 0:02:18]} Be7 {[%emt 0:00:31]} 14. Qe4 {[%emt 0:09:37]} (14. c4 $14) 14... Qa5 {[%emt 0:06:07]} 15. Bd2 {[%emt 0:07:37]} Qd5 {[%emt 0:03:18]} 16. Qg4 {[%emt 0:02:00]} f5 {[%emt 0:03:28]} 17. Qg3 {[%emt 0:11:08]} Rf7 {[%emt 0:07:14]} 18. h4 {[%emt 0:03:36]} Kf8 {[%emt 0:05:19]} (18... b5 $142) 19. Qf4 {[%emt 0:04:27]} Ke8 {[%emt 0:08:41]} 20. g3 {[%emt 0:03:19]} h6 {[%emt 0:01:50]} 21. Qe3 {[%emt 0:04:19]} Nf8 {[%emt 0:00:50]} 22. Qd3 {[%emt 0:01:08]} c5 {[%emt 0:05:32]} 23. c4 {[%emt 0:05:50]} Qe4 {[%emt 0:03:00]} 24. Qe3 {[%emt 0:00:45] [#]} (24. Qb3 $1 $14 {was forced to keep a grip.} Rd8 (24... cxd4 25. Rfe1 $16) 25. Rae1) 24... cxd4 {[%emt 0:06:06]} (24... Rd8 $1 $17 25. Bc3 b6) 25. Qxe4 {[%emt 0:01:42]} fxe4 {[%emt 0:00:23]} 26. Nxd4 {[%emt 0:00:07]} Bc5 {[%emt 0:01:08]} 27. Nb3 {[%emt 0:00:43]} Bb6 {[%emt 0:01:24]} 28. Rae1 {[%emt 0:04:14]} Rf5 {[%emt 0:03:47]} 29. Rxe4 {[%emt 0:00:46]} Nd7 {[%emt 0:01:20]} 30. Bc3 $14 {[%emt 0:01:38]} Ke7 {[%emt 0:00:53]} 31. Kg2 {[%emt 0:00:58]} a5 {[%emt 0:00:52]} 32. f4 {[%emt 0:01:04]} a4 {[%emt 0:00:54]} 33. Bb4+ {[%emt 0:01:15]} 1-0

[Event "Silves Open 2025"]
[Site "Fissul"]
[Date "2025.03.05"]
[Round "6.29"]
[White "Bravo Galvez, Ricardo"]
[Black "Goncalves, Samuel Jesus P"]
[Result "1/2-1/2"]
[Annotator "TA"]
[ECO "E32"]
[WhiteElo "2098"]
[BlackElo "2280"]
[PlyCount "55"]
[EventDate "2025.03.03"]
[EventType "swiss"]
[EventCountry "POR"]
[SourceTitle "playchess.com"]
[Source "ChessBase"]
[SourceQuality "1"]
[TimeControl "5400+30"]

{[%evp 9,55,16,39,51,65,35,49,57,45,33,91,20,89,74,65,18,94,-13,-19,-14,-10,-29,-30,-34,0,0,0,0,0,0,-6,-11,0,-121,-65,-97,-86,-237,-86,-133,-154,-141,0,0,0,0,0,0]} 1. d4 {[%emt 1:31:00]} Nf6 {[%emt 1:31:00]} 2. c4 {[%emt 0:00:00]} e6 {[%emt 0:00:00]} 3. Nc3 {[%emt 0:00:00]} Bb4 {[%emt 0:00:00]} 4. Qc2 {[%emt 0:00:00]} d6 {[%emt 0:00:00]} 5. Bd2 {[%emt 0:00:00]} Bxc3 {[%emt 0:00:00]} 6. Bxc3 {[%emt 0:00:00]} O-O {[%emt 0:00:00]} 7. g3 {[%emt 0:00:00]} c5 {[%emt 0:00:00]} 8. dxc5 {[%emt 0:00:00] White is slightly better.} dxc5 {[%emt 0:00:00]} 9. Bg2 {[%emt 0:00:00]} Nc6 {[%emt 0:00:00]} (9... Qe7 $14) 10. e3 {[%emt 0:00:00]} (10. Bxc6 $16 bxc6 11. Nf3) 10... Qc7 {[%emt 0:00:00]} (10... Nb4 $11 11. Bxb4 cxb4) 11. Bxf6 $16 {[%emt 0:00:00]} gxf6 {[%emt 0:00:00]} 12. a3 {[%emt 0:00:00]} (12. Ne2 $14) 12... e5 {[%emt 0:00:00]} (12... b6 $11 {keeps the balance.}) 13. Bh3 {[%emt 0:00:00] White is more active.} (13. O-O-O $16) 13... Bxh3 $11 {[%emt 0:00:00]} 14. Nxh3 {[%emt 0:00:00]} Rad8 {[%emt 0:00:00]} 15. O-O {[%emt 0:00:00]} Qd7 {[%emt 0:00:00]} 16. Kg2 {[%emt 0:00:00]} Qd2 {[%emt 0:00:00]} 17. Qf5 {[%emt 0:00:00]} Qd6 {[%emt 0:00:00]} 18. Qg4+ {[%emt 0:00:00]} Kh8 {[%emt 0:00:00]} 19. Rfd1 {[%emt 0:00:00]} Qe6 {[%emt 0:00:00]} 20. Qe2 {[%emt 0:00:00]} Na5 {[%emt 0:00:00]} 21. Qf3 {[%emt 0:00:00]} (21. Rxd8 $11 Rxd8 22. Rc1) 21... b6 {[%emt 0:00:00]} (21... Qxc4 $2 22. Qxf6+ Kg8 23. Qg5+ (23. Rxd8 Qe4+ 24. Kg1 Nc6 $18) 23... Kh8 24. Rxd8 $18) (21... Nxc4 $17 22. Qe2 b5) 22. Rd5 {[%emt 0:00:00]} Nxc4 {[%emt 0:00:00] Black has a queen side majority} 23. Rad1 {[%emt 0:00:36]} (23. e4 $17 {is the only way for White.}) 23... Qe7 $2 {[%emt 0:00:00]} (23... Rxd5 $19 24. Qxd5 Qxd5+ (24... Nxb2 25. Qxe6 fxe6 26. Rd6 $17) 25. Rxd5 a5 (25... Nxb2 $2 26. Ng1 $17)) 24. Rd7 {[%emt 0:07:05]} Rxd7 $17 {[%emt 0:00:00]} 25. Rxd7 {[%emt 0:00:09] [#]} Qxd7 {[%emt 0:00:00]} ({Black should play} 25... Qe6 $1 $17 26. b4 Kg7 (26... Qxd7 27. Qxf6+ Kg8 28. Qg5+ Kh8 29. Qf6+ Kg8 30. Qg5+ Kh8 31. Qf6+ $11) (26... Nxa3 27. bxc5 bxc5 28. Rxa7 $17)) 26. Qxf6+ $11 {[%emt 0:00:13] The position is equal.} Kg8 {[%emt 0:00:00]} 27. Qg5+ {[%emt 0:00:07]} Kh8 {[%emt 0:00:00]} 28. Qf6+ {[%emt 0:00:07] Weighted Error Value: White=0.41/Black=0.42  Mistake:       	White=6     	Black=6      Inaccurate:     	White=2     	Black=1      OK:         	White=4     	Black=5      Best:        	White=4     	Black=2} 1/2-1/2

[Event "Silves Open 2025"]
[Site "Fissul"]
[Date "2025.03.05"]
[Round "6.30"]
[White "Almeida, Luis Eduardo dos Rei"]
[Black "Tolentino, Andre Angelo"]
[Result "1/2-1/2"]
[Annotator "NA RC"]
[ECO "C01"]
[WhiteElo "1841"]
[BlackElo "1843"]
[PlyCount "60"]
[EventDate "2025.03.03"]
[EventType "swiss"]
[EventCountry "POR"]
[SourceTitle "playchess.com"]
[Source "ChessBase"]
[SourceQuality "1"]
[TimeControl "5400+30"]

{[%evp 8,59,11,14,12,10,5,14,32767,32767,32767,32767,32767,32767,32767,32767,32767,32767,32767,32767,32767,32767,32767,-14,-11,-30,-13,32767,18,32767,32767,32767,32767,32767,32767,0,18,-24,32767,-12,-10,-14,-12,32767,-27,32767,-29,-25,-32,-33,32767,32767,32767,-23]} 1. e4 {[%emt 1:31:00]} e6 {[%emt 1:31:00]} 2. d4 {[%emt 0:00:30]} d5 {[%emt 0:00:30]} 3. exd5 {[%emt 0:00:30]} exd5 {[%emt 0:00:30]} 4. Nf3 {[%emt 0:00:30]} Nf6 {[%emt 0:00:30]} 5. Bd3 {[%emt 0:00:30]} Bd6 {[%emt 0:00:30]} 6. O-O {[%emt 0:00:30]} O-O {[%emt 0:00:30]} 7. Bg5 {[%emt 0:00:30]} h6 {[%emt 0:00:30]} 8. Bh4 {[%emt 0:00:30]} c6 {[%emt 0:00:30] C01: French: Exchange Variation.} 9. Nbd2 {[%emt 0:00:30]} Bg4 {[%emt 0:00:30]} 10. c3 {[%emt 0:00:30]} Nbd7 {[%emt 0:00:30]} 11. Qc2 {[%emt 0:00:30]} a5 {[%emt 0:00:30]} 12. Bf5 {[%emt 0:00:30]} Bxf5 {[%emt 0:00:30]} 13. Qxf5 {[%emt 0:00:30]} Re8 {[%emt 0:00:30]} 14. Rfe1 {[%emt 0:00:30]} Qb6 {[%emt 0:00:30]} 15. b3 {[%emt 0:00:30]} a4 {[%emt 0:00:30]} 16. Ne5 {[%emt 0:00:30]} Qc7 {[%emt 0:00:30]} 17. f4 {[%emt 0:00:30]} Bxe5 {[%emt 0:00:30]} 18. fxe5 {[%emt 0:00:30]} Nh7 {[%emt 0:00:30]} 19. Bg3 {[%emt 0:00:30]} Qc8 {[%emt 0:00:30]} 20. Rf1 {[%emt 0:00:30]} f6 {[%emt 0:00:30]} 21. Rae1 {[%emt 0:00:30]} Ndf8 {[%emt 0:00:30]} 22. b4 {[%emt 0:00:30]} (22. Qh5 $142) 22... Qxf5 {[%emt 0:00:30]} 23. Rxf5 {[%emt 0:00:30]} fxe5 {[%emt 0:00:30]} 24. Rfxe5 {[%emt 0:00:30]} Rxe5 {[%emt 0:00:30]} 25. Rxe5 {[%emt 0:00:30]} Ng6 {[%emt 0:00:30]} 26. Re3 {[%emt 0:00:30]} Nf6 {[%emt 0:00:30]} 27. h3 $11 {[%emt 0:00:30]} Re8 {[%emt 0:00:30]} 28. Kf2 {[%emt 0:00:30]} Rxe3 {[%emt 0:00:30]} 29. Kxe3 {[%emt 0:00:30]} b5 {[%emt 0:00:30]} 30. Be5 {[%emt 0:00:30]} Kf7 {[%emt 0:00:30]} 1/2-1/2

[Event "Silves Open 2025"]
[Site "Fissul"]
[Date "2025.03.04"]
[Round "6.31"]
[White "Goncalves, Beatriz M A C Nunes"]
[Black "Breitkopf, Ilian"]
[Result "0-1"]
[Annotator "NA RC COMBH"]
[ECO "C26"]
[WhiteElo "1458"]
[BlackElo "1671"]
[PlyCount "80"]
[EventDate "2025.03.03"]
[EventType "swiss"]
[EventCountry "POR"]
[SourceTitle "playchess.com"]
[Source "ChessBase"]
[SourceQuality "1"]
[TimeControl "5400+30"]

1. e4 {[%emt 0:00:02]} e5 {[%emt 0:00:11]} 2. Nc3 {[%emt 0:00:13]} Nf6 {[%emt 0:00:44]} 3. g3 {[%emt 0:00:05]} Nc6 {[%emt 0:01:45]} 4. Bg2 {[%emt 0:00:09]} Bc5 {[%emt 0:00:17]} 5. Nge2 {[%emt 0:00:14]} Nd4 {[%emt 0:01:16]} 6. O-O {[%emt 0:01:06]} O-O {[%emt 0:00:34]} 7. d3 {[%emt 0:00:33]} d6 {[%emt 0:00:44]} 8. h3 {[%emt 0:00:23]} Be6 {[%emt 0:01:06]} 9. Nxd4 Bxd4 {[%emt 0:00:20]} 10. Ne2 {[%emt 0:00:50]} Bb6 {[%emt 0:00:49]} 11. Kh2 {[%emt 0:00:14]} h6 {[%emt 0:00:46]} 12. f4 {[%emt 0:00:23]} Bd7 {[%emt 0:01:26]} 13. Nc3 {[%emt 0:06:29]} a6 {[%emt 0:01:41]} 14. Qf3 {[%emt 0:00:17]} Bd4 {[%emt 0:01:08]} 15. fxe5 {[%emt 0:00:45]} dxe5 {[%emt 0:01:21]} 16. Bxh6 {[%emt 0:00:17]} gxh6 {[%emt 0:00:36]} 17. Qxf6 {[%emt 0:00:08]} Qxf6 {[%emt 0:00:35]} 18. Rxf6 {[%emt 0:00:04]} Kg7 {[%emt 0:00:22]} 19. Raf1 {[%emt 0:02:11]} Be6 {[%emt 0:01:00]} 20. a3 {[%emt 0:03:11]} b5 {[%emt 0:01:29]} 21. Nd1 {[%emt 0:01:07]} Ba7 {[%emt 0:01:32]} 22. R6f3 {[%emt 0:02:34]} c5 {[%emt 0:00:36]} 23. Ne3 {[%emt 0:00:23]} Rac8 {[%emt 0:01:07]} 24. Nf5+ {[%emt 0:00:15]} Bxf5 {[%emt 0:00:19]} 25. Rxf5 {[%emt 0:00:47]} f6 {[%emt 0:01:07]} 26. b3 {[%emt 0:01:20]} c4 {[%emt 0:00:21]} 27. dxc4 {[%emt 0:10:33]} bxc4 {[%emt 0:00:17]} 28. Rd1 {[%emt 0:00:27]} cxb3 {[%emt 0:00:22]} 29. cxb3 {[%emt 0:00:17]} Bd4 {[%emt 0:00:53]} 30. Rf3 {[%emt 0:01:58]} Rc2 {[%emt 0:02:29]} 31. Rfd3 {[%emt 0:01:30]} Ra2 {[%emt 0:00:47]} 32. a4 {[%emt 0:00:30]} Rc8 {[%emt 0:00:09]} 33. R1d2 {[%emt 0:03:09]} Ra3 {[%emt 0:01:00]} 34. Rd1 {[%emt 0:02:54]} Rb8 {[%emt 0:00:18]} 35. Rb1 {[%emt 0:01:29]} Rxa4 {[%emt 0:00:07]} 36. bxa4 {[%emt 0:02:19]} Rxb1 {[%emt 0:00:14]} 37. Ra3 {[%emt 0:00:31]} Bg1+ {[%emt 0:00:20]} 38. Kh1 {[%emt 0:00:23]} Bc5+ {[%emt 0:00:08]} 39. Kh2 {[%emt 0:00:19]} Bxa3 {[%emt 0:00:13]} 40. a5 {[%emt 0:01:14]} Rb5 {[%emt 0:00:19]} 0-1